fUSD/lending_fUSD_20240220
["ID","MTS","AMOUNT","RATE_DAILY","PERIOD"]
[314536954,1708407039828,-500.0,0.00035616,2]
[314536955,1708407039838,-500.0,0.00035616,2]
[314536956,1708407039847,-500.0,0.00035616,2]
[314536957,1708407039859,-500.0,0.00035616,2]
[314536958,1708407039868,-500.0,0.00035616,2]
[314536959,1708407039878,-500.0,0.00035616,2]
[314536960,1708407039887,-783.6,0.00035616,2]
[314536961,1708407039896,-500.0,0.00035616,2]
[314536962,1708407039905,-500.0,0.00035616,2]
[314536963,1708407039915,-1081.64,0.00035616,2]
[314536964,1708407039924,-1877.64,0.00035616,2]
[314536965,1708407039933,-690.62,0.00035616,2]
[314536966,1708407039943,-734.54,0.00035616,2]
[314536967,1708407039953,-500.0,0.00035616,2]
[314536968,1708407039962,-500.0,0.00035616,2]
[314536969,1708407039972,-500.0,0.00035616,2]
[314536970,1708407039981,-562.49,0.00035616,2]
[314536971,1708407039990,-500.0,0.00035616,2]
[314536972,1708407039999,-500.0,0.00035616,2]
[314536973,1708407040008,-500.0,0.00035616,2]
[314536974,1708407040017,-4187.83,0.00035616,2]
[314536975,1708407040026,-500.0,0.00035616,2]
[314536976,1708407040036,-195.49874344,0.00035616,2]
[314536977,1708407040046,-500.0,0.00035616,2]
[314536978,1708407040055,-625.58,0.00035616,2]
[314536979,1708407040063,-500.0,0.00035616,2]
[314536980,1708407040071,-500.0,0.00035616,2]
[314536981,1708407040079,-500.0,0.00035616,2]
[314536982,1708407040089,-1450.69,0.00035616,2]
[314536983,1708407040098,-500.0,0.00035616,2]
[314536984,1708407040109,-500.0,0.00035616,2]
[314536985,1708407040118,-500.0,0.00035616,2]
[314536986,1708407040128,-707.24,0.00035616,2]
[314536987,1708407040137,-500.0,0.00035616,2]
[314536988,1708407040146,-500.0,0.00035616,2]
[314536989,1708407040155,-500.0,0.00035616,2]
[314536990,1708407040164,-725.61,0.00035616,2]
[314536991,1708407040174,-500.0,0.00035616,2]
[314536992,1708407040183,-516.13,0.00035616,2]
[314536993,1708407040192,-500.0,0.00035616,2]
[314536994,1708407040201,-563.32,0.00035616,2]
[314536995,1708407040210,-614.89,0.00035616,2]
[314536996,1708407040220,-500.0,0.00035616,2]
[314536997,1708407040229,-662.69,0.00035616,2]
[314536998,1708407040238,-500.0,0.00035616,2]
[314536999,1708407040247,-795.91,0.00035616,2]
[314537000,1708407040256,-325.28652975,0.00035616,2]
[314537001,1708407040266,-500.0,0.00035616,2]
[314537002,1708407040275,-500.0,0.00035616,2]
[314537003,1708407040284,-500.0,0.00035616,2]
[314537004,1708407040294,-624.79,0.00035616,2]
[314537005,1708407040303,-500.0,0.00035616,2]
[314537006,1708407040313,-500.0,0.00035616,2]
[314537007,1708407040324,-500.0,0.00035616,2]
[314537008,1708407040333,-2794.6,0.00035616,2]
[314537009,1708407040342,-500.0,0.00035616,2]
[314537010,1708407040353,-808.1,0.00035616,2]
[314537011,1708407040362,-531.79133288,0.00035616,2]
[314537012,1708407040372,-500.0,0.00035616,2]
[314537013,1708407040381,-500.0,0.00035616,2]
[314537014,1708407040391,-500.0,0.00035616,2]
[314537015,1708407040400,-500.0,0.00035616,2]
[314537016,1708407040410,-825.34,0.00035616,2]
[314537017,1708407040419,-500.0,0.00035616,2]
[314537018,1708407040428,-500.0,0.00035616,2]
[314537019,1708407040437,-500.0,0.00035616,2]
[314537020,1708407040446,-500.0,0.00035616,2]
[314537021,1708407040455,-380.38193972,0.00035616,2]
[314537022,1708407040465,-500.0,0.00035616,2]
[314537023,1708407040474,-500.0,0.00035616,2]
[314537024,1708407040483,-500.0,0.00035616,2]
[314537025,1708407040492,-500.0,0.00035639,2]
[314537026,1708407040502,-500.0,0.00035639,2]
[314537027,1708407040511,-500.0,0.00035639,2]
[314537028,1708407040520,-500.0,0.00035639,2]
[314537029,1708407040529,-500.0,0.00035639,2]
[314537030,1708407040538,-500.0,0.00035639,2]
[314537031,1708407040547,-500.0,0.00035639,2]
[314537032,1708407040556,-639.52,0.00035639,2]
[314537033,1708407040565,-591.8,0.00035639,2]
[314537034,1708407040575,-2350.6,0.00035639,2]
[314537035,1708407040584,-500.0,0.00035639,2]
[314537036,1708407040594,-500.0,0.00035639,2]
[314537037,1708407040604,-1183.71,0.00035639,2]
[314537038,1708407040614,-500.0,0.00035639,2]
[314537039,1708407040623,-500.0,0.00035639,2]
[314537040,1708407040633,-1056.08,0.00035639,2]
[314537041,1708407040642,-500.0,0.00035639,2]
[314537042,1708407040652,-500.0,0.00035639,2]
[314537043,1708407040662,-500.0,0.00035639,2]
[314537044,1708407040671,-500.0,0.00035639,2]
[314537045,1708407040681,-500.0,0.00035639,2]
[314537046,1708407040691,-500.0,0.00035639,2]
[314537047,1708407040701,-2754.51,0.00035639,2]
[314537048,1708407040710,-500.0,0.00035639,2]
[314537049,1708407040719,-500.0,0.00035639,2]
[314537050,1708407040729,-809.56,0.00035639,2]
[314537051,1708407040738,-878.99,0.00035639,2]
[314537052,1708407040747,-500.0,0.00035639,2]
[314537053,1708407040756,-529.1034871,0.0003564,2]
[314537054,1708407040766,-500.0,0.0003564,2]
[314537055,1708407040775,-500.0,0.0003564,2]
[314537056,1708407040784,-500.0,0.0003564,2]
[314537057,1708407040794,-500.0,0.0003564,2]
[314537058,1708407040804,-500.0,0.0003564,2]
[314537059,1708407040813,-500.0,0.0003564,2]
[314537060,1708407040822,-365.7008053,0.0003564,2]
[314537061,1708407040831,-647.18169724,0.0003564,2]
[314537062,1708407040841,-500.0,0.0003564,2]
[314537063,1708407040850,-500.0,0.0003564,2]
[314537065,1708407040860,-500.0,0.0003564,2]
[314537066,1708407040870,-500.0,0.0003564,2]
[314537067,1708407040880,-500.0,0.0003564,2]
[314537068,1708407040890,-500.0,0.0003564,2]
[314537069,1708407040899,-500.0,0.0003564,2]
[314537070,1708407040908,-500.0,0.0003564,2]
[314537071,1708407040917,-500.0,0.0003564,2]
[314537072,1708407040927,-558.85839936,0.0003564,2]
[314537073,1708407040936,-500.0,0.0003564,2]
[314537074,1708407040946,-500.0,0.0003564,2]
[314537075,1708407040956,-500.0,0.0003564,2]
[314537076,1708407040965,-500.0,0.0003564,2]
[314537077,1708407040975,-500.0,0.0003564,2]
[314537078,1708407040985,-500.0,0.0003564,2]
[314537079,1708407040994,-528.27040113,0.0003564,2]
[314537080,1708407041004,-500.0,0.0003564,2]
[314537081,1708407041013,-500.0,0.0003564,2]
[314537082,1708407041022,-500.0,0.0003564,2]
[314537083,1708407041031,-500.0,0.0003564,2]
[314537084,1708407041040,-500.0,0.0003564,2]
[314537085,1708407041050,-500.0,0.0003564,2]
[314537086,1708407041059,-500.0,0.0003564,2]
[314537087,1708407041068,-515.96273189,0.0003564,2]
[314537088,1708407041077,-500.0,0.0003564,2]
[314537089,1708407041086,-500.0,0.0003564,2]
[314537090,1708407041095,-500.0,0.0003564,2]
[314537091,1708407041105,-500.0,0.0003564,2]
[314537092,1708407041114,-500.0,0.0003564,2]
[314537093,1708407041123,-500.0,0.0003564,2]
[314537094,1708407041132,-500.0,0.0003564,2]
[314537095,1708407041141,-500.0,0.0003564,2]
[314537096,1708407041150,-500.0,0.0003564,2]
[314537097,1708407041159,-500.0,0.0003564,2]
[314537098,1708407041169,-500.0,0.0003564,2]
[314537099,1708407041178,-500.0,0.0003564,2]
[314537100,1708407041187,-500.0,0.0003564,2]
[314537101,1708407041196,-614.86,0.0003564,2]
[314537102,1708407041206,-500.0,0.0003564,2]
[314537103,1708407041215,-500.0,0.0003564,2]
[314537104,1708407041224,-500.0,0.0003564,2]
[314537105,1708407041234,-500.0,0.0003564,2]
[314537106,1708407041244,-568.89,0.0003564,2]
[314537107,1708407041253,-500.0,0.0003564,2]
[314537108,1708407041263,-500.0,0.0003564,2]
[314537109,1708407041272,-500.0,0.0003564,2]
[314537110,1708407041281,-500.0,0.0003564,2]
[314537111,1708407041290,-500.0,0.0003564,2]
[314537112,1708407041299,-1179.36,0.0003564,2]
[314537113,1708407041313,-500.0,0.0003564,2]
[314537114,1708407041322,-500.0,0.0003564,2]
[314537115,1708407041332,-1355.86,0.0003564,2]
[314537116,1708407041341,-500.0,0.0003564,2]
[314537117,1708407041351,-500.0,0.0003564,2]
[314537118,1708407041361,-577.79299157,0.0003564,2]
[314537119,1708407041370,-1563.82,0.0003564,2]
[314537120,1708407041380,-500.0,0.0003564,2]
[314537121,1708407041391,-500.0,0.0003564,2]
[314537122,1708407041401,-500.0,0.0003564,2]
[314537123,1708407041411,-500.0,0.0003564,2]
[314537124,1708407041420,-500.0,0.0003564,2]
[314537125,1708407041429,-1578.99,0.0003564,2]
[314537126,1708407041438,-500.0,0.0003564,2]
[314537127,1708407041447,-586.26,0.0003564,2]
[314537128,1708407041726,-975.6,0.0003564,2]
[314537129,1708407041737,-527.39923082,0.0003564,2]
[314537130,1708407041747,-500.0,0.0003564,2]
[314537131,1708407041756,-500.0,0.0003564,2]
[314537132,1708407041766,-534.28381847,0.0003564,2]
[314537133,1708407041775,-500.0,0.0003564,2]
[314537134,1708407041785,-500.0,0.0003564,2]
[314537135,1708407041795,-500.0,0.0003564,2]
[314537136,1708407041806,-567.72,0.0003564,2]
[314537137,1708407041816,-572.53642297,0.0003564,2]
[314537138,1708407041826,-722.55,0.0003564,2]
[314537139,1708407041835,-500.0,0.0003564,2]
[314537140,1708407041845,-500.0,0.0003564,2]
[314537141,1708407041856,-500.0,0.0003564,2]
[314537142,1708407041866,-500.0,0.0003564,2]
[314537143,1708407041875,-500.0,0.0003564,2]
[314537144,1708407041885,-500.0,0.0003564,2]
[314537145,1708407041895,-1335.26,0.0003564,2]
[314537146,1708407041904,-500.0,0.0003564,2]
[314537147,1708407041914,-500.0,0.0003564,2]
[314537148,1708407041924,-500.0,0.0003564,2]
[314537149,1708407041935,-500.0,0.0003564,2]
[314537150,1708407041944,-490.0,0.0003564,2]
[314537151,1708407041954,-1179.37,0.0003564,2]
[314537152,1708407041963,-500.0,0.0003564,2]
[314537153,1708407041972,-500.0,0.0003564,2]
[314537154,1708407041982,-500.0,0.0003564,2]
[314537155,1708407041993,-511.39361169,0.0003564,2]
[314537156,1708407042003,-500.0,0.0003564,2]
[314537157,1708407042013,-500.0,0.0003564,2]
[314537158,1708407042022,-500.0,0.0003564,2]
[314537159,1708407042032,-500.0,0.0003564,2]
[314537160,1708407042041,-500.0,0.0003564,2]
[314537161,1708407042051,-500.0,0.0003564,2]
[314537162,1708407042061,-500.0,0.0003564,2]
[314537163,1708407042071,-607.46,0.0003564,2]
[314537164,1708407042081,-500.0,0.0003564,2]
[314537165,1708407042091,-61844.33309911,0.00035641,2]
[314537166,1708407042109,-133782.51602035,0.00035641,2]
[314537167,1708407042128,-49373.15088054,0.00035641,2]
[314537168,1708407042138,-2229.1349,0.00035642,2]
[314537169,1708407042147,-305.71421946,0.00035642,3]
[314537170,1708407042176,-733.21350001,0.00035642,3]
[314537171,1708407042501,-607.58124141,0.00035642,3]
[314537172,1708407042575,-781.53149085,0.00035642,3]
[314537173,1708407042618,-1490.32761417,0.00035642,3]
[314537174,1708407042630,-1081.6319341,0.00035642,3]
[314537175,1708407042640,-403.61380851,0.00035741,2]
[314537176,1708407042650,-325.63024935,0.00035741,2]
[314537177,1708407042662,-174.36975065,0.00035741,2]
[314537178,1708407042672,-302.54215475,0.00035741,2]
[314537179,1708407042683,-197.45784525,0.00035741,2]
[314537180,1708407042693,-500.0,0.00035741,2]
[314537181,1708407042702,-500.0,0.00035741,2]
[314537182,1708407042712,-500.0,0.00035741,2]
[314537183,1708407042721,-500.0,0.00035741,2]
[314537184,1708407042731,-500.0,0.00035741,2]
[314537185,1708407042740,-500.0,0.00035741,2]
[314537186,1708407042750,-500.0,0.00035741,2]
[314537187,1708407042759,-500.0,0.00035741,2]
[314537188,1708407042769,-500.0,0.00035741,2]
[314537189,1708407042778,-500.0,0.00035741,2]
[314537190,1708407042788,-500.0,0.00035741,2]
[314537191,1708407042798,-500.0,0.00035741,2]
[314537192,1708407042807,-483.79038058,0.00035741,2]
[314537193,1708407042817,-500.0,0.00035741,2]
[314537194,1708407042826,-500.0,0.00035741,2]
[314537195,1708407042835,-500.0,0.00035741,2]
[314537196,1708407042845,-500.0,0.00035741,2]
[314537197,1708407042854,-500.0,0.00035741,2]
[314537198,1708407042864,-500.0,0.00035741,2]
[314537199,1708407042873,-500.0,0.00035741,2]
[314537200,1708407042883,-608.04625327,0.00035741,2]
[314537201,1708407042893,-500.0,0.00035741,2]
[314537202,1708407042902,-500.0,0.00035741,2]
[314537203,1708407042912,-622.26873379,0.00035741,2]
[314537204,1708407042922,-500.0,0.00035741,2]
[314537205,1708407042931,-500.0,0.00035741,2]
[314537206,1708407042941,-500.0,0.00035741,2]
[314537207,1708407042950,-500.0,0.00035741,2]
[314537208,1708407042959,-500.0,0.00035741,2]
[314537209,1708407042968,-500.0,0.00035741,2]
[314537210,1708407042977,-500.0,0.00035741,2]
[314537211,1708407042986,-500.0,0.00035741,2]
[314537212,1708407042996,-500.0,0.00035741,2]
[314537213,1708407043005,-500.0,0.00035741,2]
[314537215,1708407043014,-500.0,0.00035741,2]
[314537217,1708407043023,-500.0,0.00035741,2]
[314537218,1708407043033,-623.52985068,0.00035741,2]
[314537220,1708407043042,-500.0,0.00035741,2]
[314537221,1708407043053,-500.0,0.00035741,2]
[314537222,1708407043062,-500.0,0.00035741,2]
[314537223,1708407043072,-500.0,0.00035741,2]
[314537224,1708407043081,-500.0,0.00035741,2]
[314537226,1708407043091,-625.63,0.00035741,2]
[314537227,1708407043100,-500.0,0.00035741,2]
[314537228,1708407043110,-500.0,0.00035741,2]
[314537229,1708407043120,-500.0,0.00035741,2]
[314537230,1708407043129,-500.0,0.00035741,2]
[314537231,1708407043139,-500.0,0.00035741,2]
[314537233,1708407043149,-500.0,0.00035741,2]
[314537234,1708407043158,-500.0,0.00035741,2]
[314537235,1708407043167,-500.0,0.00035741,2]
[314537236,1708407043177,-500.0,0.00035741,2]
[314537237,1708407043186,-500.0,0.00035741,2]
[314537238,1708407043195,-500.0,0.00035741,2]
[314537239,1708407043205,-500.0,0.00035741,2]
[314537240,1708407043215,-500.0,0.00035741,2]
[314537241,1708407043224,-500.0,0.00035741,2]
[314537242,1708407043233,-500.0,0.00035741,2]
[314537243,1708407043242,-500.0,0.00035741,2]
[314537244,1708407043252,-500.0,0.00035741,2]
[314537245,1708407043261,-500.0,0.00035741,2]
[314537246,1708407043271,-500.0,0.00035741,2]
[314537247,1708407043281,-500.0,0.00035741,2]
[314537248,1708407043290,-637.9614222,0.00035741,2]
[314537249,1708407043299,-500.0,0.00035741,2]
[314537250,1708407043309,-500.0,0.00035741,2]
[314537251,1708407043322,-500.0,0.00035741,2]
[314537252,1708407043332,-500.0,0.00035741,2]
[314537253,1708407043341,-500.0,0.00035741,2]
[314537254,1708407043350,-545.16014824,0.00035741,2]
[314537255,1708407043360,-500.0,0.00035741,2]
[314537256,1708407043369,-500.0,0.00035741,2]
[314537257,1708407043379,-500.0,0.00035741,2]
[314537258,1708407043387,-500.0,0.00035741,2]
[314537259,1708407043398,-500.0,0.00035741,2]
[314537260,1708407043407,-500.0,0.00035741,2]
[314537261,1708407043416,-500.0,0.00035741,2]
[314537262,1708407043425,-500.0,0.00035741,2]
[314537263,1708407043434,-513.1325825,0.00035742,2]
[314537264,1708407043444,-348.60263926,0.00035742,2]
[314537265,1708407043453,-500.0,0.00035742,2]
[314537266,1708407043462,-500.0,0.00035742,2]
[314537267,1708407043471,-500.0,0.00035742,2]
[314537268,1708407043481,-500.0,0.00035742,2]
[314537269,1708407043491,-500.0,0.00035742,2]
[314537270,1708407043500,-500.0,0.00035742,2]
[314537271,1708407043509,-500.0,0.00035742,2]
[314537272,1708407043518,-500.0,0.00035742,2]
[314537273,1708407043527,-500.0,0.00035742,2]
[314537274,1708407043537,-500.0,0.00035742,2]
[314537275,1708407043546,-583.00048041,0.00035742,2]
[314537276,1708407043555,-500.0,0.00035742,2]
[314537277,1708407043565,-500.0,0.00035742,2]
[314537278,1708407043574,-500.0,0.00035742,2]
[314537279,1708407043584,-500.0,0.00035742,2]
[314537280,1708407043593,-500.0,0.00035742,2]
[314537281,1708407043603,-500.0,0.0003589,2]
[314537282,1708407043613,-500.0,0.0003589,2]
[314537283,1708407043623,-500.0,0.0003589,2]
[314537284,1708407043632,-500.0,0.0003589,2]
[314537285,1708407043641,-500.0,0.0003589,2]
[314537286,1708407043650,-500.0,0.0003589,2]
[314537287,1708407043660,-14.77739576,0.0003589,2]
[314537288,1708407043977,-5784.29,0.0003563,10]
[314537289,1708407043986,-485.22260424,0.0003589,2]
[314537290,1708407043996,-500.0,0.0003589,2]
[314537291,1708407044005,-500.0,0.0003589,2]
[314537292,1708407044014,-500.76,0.0003589,2]
[314537293,1708407044023,-500.0,0.0003589,2]
[314537294,1708407044032,-581.95901421,0.0003589,2]
[314537295,1708407044041,-583.83816261,0.0003589,2]
[314537296,1708407044051,-500.0,0.0003589,2]
[314537297,1708407044108,-189.75816887,0.0003589,2]
[314537298,1708407044117,-500.0,0.0003589,2]
[314537299,1708407044126,-436.03513407,0.0003589,2]
[314537300,1708407044165,-63.96486593,0.0003589,2]
[314537301,1708407044175,-27.21151313,0.0003589,2]
[314537304,1708407046237,-500.0,0.00035639,2]
[314537305,1708407046247,-259.08272986,0.0003564,2]
[314537306,1708407046267,-240.91727014,0.0003564,2]
[314537307,1708407046277,-371.24911261,0.0003564,2]
[314537308,1708407046369,-232.74088739,0.0003564,2]
[314537309,1708407046378,-317.91995513,0.0003589,2]
[314537310,1708407046390,-154.86853174,0.0003589,2]
[314537311,1708407046399,-553.87085438,0.0003589,2]
[314537312,1708407046408,-500.0,0.0003589,2]
[314537313,1708407046417,-163.39080877,0.0003589,2]
[314537314,1708407046426,-500.0,0.0003589,2]
[314537315,1708407046435,-500.0,0.0003589,2]
[314537316,1708407046444,-500.0,0.0003589,2]
[314537317,1708407046452,-500.0,0.0003589,2]
[314537318,1708407046466,-500.0,0.0003589,2]
[314537319,1708407046474,-500.0,0.0003589,2]
[314537320,1708407046483,-500.0,0.0003589,2]
[314537321,1708407046492,-501.11025085,0.0003589,2]
[314537322,1708407046501,-500.0,0.0003589,2]
[314537323,1708407046510,-234.25088373,0.0003589,2]
[314537324,1708407046530,-265.74911627,0.0003589,2]
[314537325,1708407046539,-500.0,0.0003589,2]
[314537326,1708407046547,-500.0,0.0003589,2]
[314537327,1708407046556,-150.0,0.0003589,2]
[314537328,1708407046565,-500.0,0.0003589,2]
[314537329,1708407046574,-34.22121979,0.0003589,2]
[314537330,1708407046846,-465.77878021,0.0003589,2]
[314537331,1708407046855,-500.0,0.0003589,2]
[314537332,1708407046866,-500.0,0.0003589,2]
[314537333,1708407046875,-500.0,0.0003589,2]
[314537334,1708407046884,-500.0,0.0003589,2]
[314537335,1708407046894,-597.17,0.0003589,2]
[314537336,1708407046903,-500.0,0.0003589,2]
[314537337,1708407046912,-500.0,0.0003589,2]
[314537338,1708407046921,-500.0,0.0003589,2]
[314537339,1708407046931,-500.0,0.0003589,2]
[314537340,1708407046939,-500.0,0.0003589,2]
[314537341,1708407046948,-500.0,0.0003589,2]
[314537342,1708407046957,-500.0,0.0003589,2]
[314537343,1708407046966,-500.0,0.0003589,2]
[314537344,1708407046975,-500.0,0.0003589,2]
[314537345,1708407046984,-500.0,0.0003589,2]
[314537346,1708407046993,-500.0,0.0003589,2]
[314537347,1708407047002,-500.0,0.0003589,2]
[314537348,1708407047012,-500.0,0.0003589,2]
[314537349,1708407047021,-518.99,0.0003589,2]
[314537350,1708407047030,-558.2756145,0.0003589,2]
[314537351,1708407047040,-500.0,0.0003589,2]
[314537352,1708407047049,-387.92348468,0.0003589,2]
[314537353,1708407047057,-500.0,0.0003589,2]
[314537354,1708407047066,-500.0,0.0003589,2]
[314537355,1708407047075,-500.0,0.0003589,2]
[314537356,1708407047084,-500.0,0.0003589,2]
[314537357,1708407047093,-500.0,0.0003589,2]
[314537358,1708407047102,-543.89,0.0003589,2]
[314537359,1708407047111,-382.45320921,0.0003589,2]
[314537360,1708407047120,-3532.75,0.0003589,2]
[314537361,1708407047129,-812.66,0.0003589,2]
[314537362,1708407047138,-500.0,0.0003589,2]
[314537363,1708407047147,-500.0,0.0003589,2]
[314537364,1708407047156,-4080.92715207,0.0003589,2]
[314537366,1708407482708,-1670.68374638,0.00030654,28]
[314537369,1708408150169,-586.5322109,0.0003004,2]
[314537370,1708408150190,-1408.74901555,0.00030041,2]
[314537371,1708408150210,-431.85799552,0.00030042,4]
[314537372,1708408153124,-5651.57684897,0.0003004,4]
[314537373,1708408153145,-1027.09791572,0.0003005,4]
[314537374,1708408153165,-150.0,0.00030149,2]
[314537375,1708408153185,-4066.59731725,0.0003015,4]
[314537379,1708408163124,-3647.76647947,0.0003015,4]
[314537380,1708408163146,-495.42532287,0.00030151,2]
[314537381,1708408165125,-541.96207791,0.00030151,2]
[314537382,1708408165146,-155.0,0.00030163,4]
[314537383,1708408165166,-1453.49,0.00030173,2]
[314537384,1708408165187,-294.54792209,0.00030173,2]
[314537405,1708408231456,-167.59713041,0.00030051,2]
[314537406,1708408231465,-364.88660751,0.00030173,2]
[314537407,1708408231478,-789.8254704,0.00030173,2]
[314537408,1708408231488,-353.49,0.00030173,2]
[314537409,1708408231497,-114.38869919,0.0003037,2]
[314537410,1708408231509,-1345.53130081,0.0003037,2]
[314537411,1708408231519,-143.26369919,0.00030654,4]
[314537412,1708408231531,-2994.15666913,0.00030654,4]
[314537413,1708408231540,-206.36815221,0.00030654,4]
[314537414,1708408231549,-499.99,0.0003164,2]
[314537415,1708408231559,-635.13,0.0003164,2]
[314537416,1708408231568,-177.58,0.00032276,2]
[314537417,1708408231578,-177.58,0.00032824,2]
[314537418,1708408231587,-172.49,0.00032875,2]
[314537419,1708408231596,-658.3,0.00032875,2]
[314537420,1708408231606,-691.9142515,0.00033,4]
[314537421,1708408231616,-283.83513234,0.00033,5]
[314537422,1708408231625,-250.0,0.00033078,2]
[314537423,1708408231635,-150.99,0.00033078,2]
[314537424,1708408231644,-23900.0,0.00033276,2]
[314537425,1708408231655,-2000.0,0.00033276,2]
[314537426,1708408231664,-1408.74901555,0.00033318,2]
[314537427,1708408231675,-586.5322109,0.00033319,2]
[314537428,1708408231685,-340.02,0.0003332,2]
[314537429,1708408231694,-1000.0,0.00033329,2]
[314537430,1708408231704,-366.36,0.00033342,2]
[314537431,1708408231714,-177.58,0.00033372,2]
[314537432,1708408231723,-1182.57,0.00033382,2]
[314537433,1708408231733,-159.38,0.00033712,2]
[314537434,1708408231742,-208.0,0.00033761,2]
[314537435,1708408231752,-545.75,0.00033763,2]
[314537436,1708408231762,-635.13,0.00033904,2]
[314537437,1708408231771,-196.02712204,0.0003392,2]
[314537438,1708408231781,-167.03,0.000341,2]
[314537439,1708408231790,-250.0,0.000341,2]
[314537440,1708408231799,-1269.17,0.0003426,2]
[314537441,1708408231808,-639.74114869,0.00034388,4]
[314537442,1708408231817,-671.14,0.00034521,2]
[314537443,1708408231827,-877.9393,0.00034568,2]
[314537444,1708408231836,-29000.32488255,0.00034669,2]
[314537445,1708408231845,-158.27,0.00034793,2]
[314537446,1708408231854,-167.62,0.0003486,2]
[314537447,1708408231863,-366.36,0.00034986,2]
[314537449,1708408231873,-1258.0,0.00035176,2]
[314537450,1708408231883,-151.0212031,0.00035198,2]
[314537451,1708408231892,-208.0,0.00035305,5]
[314537452,1708408231903,-315.4273,0.00035416,2]
[314537453,1708408231913,-1690.1614,0.00035416,2]
[314537454,1708408231922,-151.0212031,0.00035498,2]
[314537455,1708408231932,-4820.24,0.00035506,10]
[314537456,1708408231942,-198.42657889,0.00035514,4]
[314537457,1708408231951,-5651.57684897,0.00035514,4]
[314537458,1708408231960,-2891.81692311,0.00035515,4]
[314537459,1708408231969,-53868.6624,0.00035516,2]
[314537460,1708408231979,-1586.5625,0.00035516,2]
[314537461,1708408231988,-1000.0,0.00035516,2]
[314537462,1708408231998,-2500.0,0.00035516,2]
[314537463,1708408232007,-161.31746707,0.00035516,7]
[314537464,1708408232017,-5000.0,0.00035539,3]
[314537465,1708408232026,-151.0212031,0.00035598,2]
[314537466,1708408232036,-252.6438322,0.00035614,4]
[314537467,1708408232046,-500.0,0.00035616,2]
[314537468,1708408232055,-500.0,0.00035616,2]
[314537469,1708408232064,-500.0,0.00035616,2]
[314537470,1708408232074,-500.0,0.00035616,2]
[314537471,1708408232084,-500.0,0.00035616,2]
[314537472,1708408232093,-630.88559728,0.00035616,2]
[314537473,1708408232102,-500.0,0.00035616,2]
[314537474,1708408232112,-500.0,0.00035616,2]
[314537475,1708408232121,-500.0,0.00035616,2]
[314537476,1708408232131,-501.50195869,0.00035616,2]
[314537477,1708408232141,-500.0,0.00035616,2]
[314537478,1708408232151,-500.0,0.00035616,2]
[314537479,1708408232161,-617.97492893,0.00035616,2]
[314537480,1708408232173,-500.0,0.00035616,2]
[314537481,1708408232182,-500.0,0.00035616,2]
[314537482,1708408232191,-500.0,0.00035616,2]
[314537483,1708408232201,-537.56827156,0.00035616,2]
[314537484,1708408232210,-500.0,0.00035616,2]
[314537485,1708408232228,-500.0,0.00035616,2]
[314537486,1708408232241,-500.0,0.00035616,2]
[314537487,1708408232251,-533.36952397,0.00035616,2]
[314537488,1708408232262,-500.0,0.00035616,2]